Cogmind - Beta 15 @@@ ROGUE MODE // 2025.09.30 @ 13:49:33 Player: Runagate Result: Destroyed by D-53 Grenadier with Mini Grenade Launcher Performance ------------- Evolutions (0) 0 Regions Visited (2) 400 Robots Destroyed (23) 115 Value Destroyed (418) 418 Prototype IDs (4) 80 Alien Tech Used (0) 0 Bonus (0) 0 TOTAL SCORE: 1013 Bonus ------- None Cogmind --------- Core Integrity 0/250 Matter 154/300 Energy 86/100 System Corruption 0% Temperature Cool (0) Movement Treading (160) Location -10/Mines Parts ------- > --- POWER (1) -------- (None) > --- PROPULSION (2) --- Light Treads Light Treads > --- UTILITY (2) ------ Large Storage Unit Medium Armor Plating > --- WEAPON (2) ------- Improved Light Cannon Improved Light Cannon > --- INVENTORY (15) --- Light Ion Engine Heat Sink Medium Matter Pod (100) High-capacity Matter Pod (0) Seismic Detector Medium Armor Plating Medium Armor Plating Heavy Assault Rifle Heavy Assault Rifle Improved Light Cannon Improved Light Cannon Peak State ------------ > --- POWER ------------ Ion Engine > --- PROPULSION ------- Light Treads Light Treads > --- UTILITY ---------- Large Storage Unit Seismic Detector > --- WEAPON ----------- Heavy Assault Rifle Improved Light Cannon > --- INVENTORY -------- Light Ion Engine Heat Sink Medium Matter Pod High-capacity Matter Pod Medium Armor Plating Medium Armor Plating Medium Armor Plating Heavy Assault Rifle Heavy Assault Rifle Improved Light Cannon Improved Light Cannon Improved Light Cannon Grenade Launcher [Rating: 11] Favorites ----------- Power Ion Engine Engine Ion Engine Propulsion Light Treads Treads Light Treads Utility Seismic Detector Device Seismic Detector Storage Small Storage Unit Protection Medium Armor Plating Weapon Heavy Assault Rifle Energy Gun Small Laser Ballistic Gun Heavy Assault Rifle Ballistic Cannon Improved Light Cannon Launcher Grenade Launcher Build | -11 -10 -10 ------- Run | Yrd Mat Min Slots Evolved . | . . . Power . | . . . Propulsion . | . . . Utility . | . . . Weapon . | . . . Parts Attached 17 | 8 6 3 Power 3 | 1 2 . Engine 3 | 1 2 . Core . | . . . Reactor . | . . . Propulsion 2 | 2 . . Treads 2 | 2 . . Leg . | . . . Wheel . | . . . Hover . | . . . Flight . | . . . Utility 5 | 3 1 1 Device 2 | 2 . . Storage 2 | 1 1 . Processor . | . . . Hackware . | . . . Protection 1 | . . 1 Artifact . | . . . Weapon 7 | 2 3 2 Energy Gun 1 | 1 . . Energy Cannon . | . . . Ballistic Gun 3 | 1 2 . Ballistic Cannon 2 | . 1 1 Launcher 1 | . . 1 Special Weapon . | . . . Impact Weapon . | . . . Slashing Weapon . | . . . Piercing Weapon . | . . . Special Melee Weapon . | . . . Unidentified Prototypes . | . . . Parts Lost 3 | . . 3 Power 1 | . . 1 Propulsion . | . . . Utility . | . . . Weapon 2 | . . 2 Highest Loss Streak 3 | . . 3 To Critical Strikes . | . . . Average Backups 7 | 2 8 12 Power . | . 1 1 Propulsion . | . . . Utility 3 | . 3 6 Weapon 3 | . 3 5 Tool/Special . | . . . Unused Backups 12 | . 2 10 Power 1 | . . 1 Propulsion . | . . . Utility 6 | . 1 5 Weapon 5 | . 1 4 Tool/Special . | . . . Average Slot Usage (%) 99 | . 99 98 Engine 13 | . 14 13 Treads 27 | . 27 28 Device 14 | . 14 14 Storage 14 | . 14 14 Energy Gun 3 | . 3 . Ballistic Gun 13 | . 14 12 Ballistic Cannon 10 | . 10 10 Peak Build Rating 11 | 7 11 11 Average Rating 8 | 6 9 10 On Entrance 6 | . 7 11 Naked Turns . | . . . Heaviest Build 33 | 11 33 33 Greatest Support 40 | 40 40 40 Greatest Overweight (x) . | . . . Average Overweight (x) . | . . . Largest Inventory Capacity 15 | 8 15 15 Average Capacity 9 | 7 9 15 Most Carried 13 | 4 13 13 Average Carried 7 | 2 8 12 Final Capacity 15 | 8 15 15 Final Carried 13 | 4 13 11 Class Distribution -------------------- 100% | Mutant Dominant Class ---------------- Mutant | -10/Materials Mutant | -10/Mines Resources | -11 -10 -10 ----------- Run | Yrd Mat Min Matter Collected 609 | 380 211 18 Remotely . | . . . Salvage Created 646 | 268 353 25 Parts 52 | 26 26 . Haulers Intercepted . | . . . Recyclers Shooed 1 | 1 . . Parts Field Recycled . | . . . Retrieved Matter . | . . . Parts Self-Destructed . | . . . Prevented . | . . . Kills | -11 -10 -10 ------- Run | Yrd Mat Min Combat Hostiles Destroyed 20 | . 10 10 Guns 9 | . 8 1 Cannons 3 | . 2 1 AOE 8 | . . 8 Classes Destroyed 7 | 3 3 1 Worker 1 | 1 . . Tunneler 8 | 8 . . Recycler 1 | 1 . . Watcher 3 | . 3 . Swarmer 3 | . 3 . Grunt 7 | . 7 . Assembled 10 | . . 10 Best Kill Streak 10 | 3 7 10 Combat Bots Only 10 | . 7 10 Max Kills in Single Turn 3 | 1 1 3 Gunslinging . | . . . Exploded 3 | . . 3 Melee . | . . . Uniques/NPCs Destroyed . | . . . Combat | -11 -10 -10 -------- Run | Yrd Mat Min Hostile Shots Fired 73 | . 44 29 Missed 19 | . 11 8 Hits 54 | . 33 21 Melee 10 | . . 10 Projectile 44 | . 33 11 AOE 6 | . . 6 Damage Taken 996 | . 365 631 Core 261 | . 111 150 Absorbed by Shields . | . . . Regen/Repaired (Parts) 11 | . 11 . Core Remaining (%) 100 | 100 . . Volleys Fired 76 | 25 36 15 Largest 2 | 2 2 2 Hottest 66 | 60 60 66 Shots Fired 144 | 50 72 22 Gun 109 | 50 50 9 Cannon 29 | . 22 7 Launcher 6 | . . 6 Special . | . . . Kinetic 99 | 25 58 16 Thermal 39 | 25 14 . Explosive 6 | . . 6 Electromagnetic . | . . . Robot Hit Streak 9 | 9 6 3 Robot Miss Streak 4 | 3 4 2 Penetration Max . | . . . Secondary Targets . | . . . Shots Hit Robots 82 | 31 41 10 Core Hits 59 | 14 23 22 Critical Kills . | . . . Critical Parts Destroyed 1 | 1 . . Critical Strikes 1 | 1 . . Destroy 1 | 1 . . Melee Attacks . | . . . Impact . | . . . Slashing . | . . . Piercing . | . . . Sneak Attacks . | . . . Combat Hostiles . | . . . Follow-up Attacks . | . . . Damage Inflicted 1570 | 307 544 719 Guns 759 | 307 399 53 Cannons 223 | . 142 81 Explosions 585 | . . 585 Melee . | . . . Ramming 3 | . 3 . Kinetic 714 | 112 468 134 Thermal 268 | 195 73 . Explosive 585 | . . 585 Electromagnetic . | . . . Impact . | . . . Slashing . | . . . Piercing . | . . . Highest Corruption . | . . . Average Corruption . | . . . Corruption Purged . | . . . Corruption Blocked . | . . . Overload Shots . | . . . Overflow Damage 6 | . 3 3 Projectiles 3 | . 3 . Explosions 3 | . . 3 Melee . | . . . Knockbacks 3 | . 1 2 Impact 1 | . 1 . Kinetic 2 | . . 2 Secondary . | . . . Self-Inflicted Damage 73 | . . 73 Shots 3 | . . 3 Rammed 2 | . 2 . Targets Rammed 2 | . 2 . Kicked . | . . . Crushed . | . . . Highest Temperature 94 | 40 94 22 Average Temperature 23 | 22 24 11 Received Heat Transfer 208 | . 168 40 Siege Activations . | . . . Martial Activations . | . . . Shielding Activations . | . . . Robots Disrupted . | . . . Combat Hostiles . | . . . Robots Corrupted . | . . . Combat Hostiles . | . . . Parts Fried . | . . . Impact Corruptions . | . . . Robots Melted . | . . . Combat Hostiles . | . . . Parts Melted . | . . . Heat Transferred 625 | 450 175 . Parts Sabotaged . | . . . Parts Stolen . | . . . Parts Stripped . | . . . Power Chain Reactions . | . . . Alert | -11 -10 -10 ------- Run | Yrd Mat Min Maximum Alert Level . | . . . Low Security (%) 100 | 100 100 100 Level 1 . | . . . Level 2 . | . . . Level 3 . | . . . Level 4 . | . . . Level 5 . | . . . High Security . | . . . Max Security . | . . . Peak Influence 157 | 10 157 14 Initial 6 | . . 6 Average 29 | 2 39 2 Influence Increases 383 | 50 305 28 Destroy 0b10 Robot/C 200 | . 200 . Destroy 0b10 Robot/NC 65 | 50 15 . Destroy Leader 56 | . 56 . Successful Hack 31 | . 31 . Destroy Structure 31 | . 3 28 Influence Decreases 383 | 50 288 45 Entered New Map 11 | . . 11 Time Decay 353 | 50 288 15 Lost Part 19 | . . 19 Squads Dispatched 1 | . 1 . Investigation . | . . . Extermination . | . . . Reinforcement 1 | . 1 . Assault . | . . . Garrison . | . . . Intercept . | . . . Searches Triggered . | . . . Construction Impeded . | . . . Haulers Reinforced . | . . . Active Scanning Responses . | . . . Cargo Convoy Interrupts . | . . . Stealth | -11 -10 -10 --------- Run | Yrd Mat Min Distress Signals 1 | . 1 . Communications Jammed . | . . . Distress Signals . | . . . Times Spotted 33 | . 18 15 Peak Tracking Total 9 | . 5 9 Tactical Retreats 2 | . . 2 Traps | -11 -10 -10 ------- Run | Yrd Mat Min Traps Triggered . | . . . Indirectly . | . . . Trap Hack Attempts . | . . . Triggered . | . . . Disarmed . | . . . Reprogrammed . | . . . Reused . | . . . Traps Extracted . | . . . Installed . | . . . Triggered . | . . . Machines | -11 -10 -10 ---------- Run | Yrd Mat Min Machines Disabled . | . . . Max in Single Turn . | . . . Machines Repaired . | . . . Machines Dismantled . | . . . Machines Sabotaged . | . . . Overloaded Fab Kills . | . . . Hacking | -11 -10 -10 --------- Run | Yrd Mat Min Machines Accessed 7 | . 7 . Terminals 6 | . 6 . Fabricators . | . . . Repair Stations 1 | . 1 . Recycling Units . | . . . Scanalyzers . | . . . Garrison Access . | . . . Total Hacks 30 | . 30 . Successful 18 | . 18 . Failed 12 | . 12 . Catastrophic 2 | . 2 . Database Lockouts . | . . . Manual 20 | . 20 . Terminals 28 | . 28 . Fabricators . | . . . Repair Stations 2 | . 2 . Recycling Units . | . . . Scanalyzers . | . . . Garrison Access . | . . . Terminal Hacks 10 | . 10 . Prototype ID Bank 3 | . 3 . Locate Traps 4 | . 4 . Registered Components 2 | . 2 . Zone Layout 1 | . 1 . Fabricator Hacks . | . . . Repair Station Hacks 2 | . 2 . Scan Component 1 | . 1 . Repair 1 | . 1 . Recycling Unit Hacks . | . . . Scanalyzer . | . . . Garrison Access Hacks . | . . . Unauthorized Hacks 6 | . 6 . Terminals 6 | . 6 . Botnet 6 | . 6 . Fabricators . | . . . Repair Stations . | . . . Recycling Units . | . . . Scanalyzers . | . . . Garrison Access . | . . . Data Cores Recovered . | . . . Used . | . . . Hacking Detections 4 | . 4 . Full Trace Events . | . . . Feedback Events . | . . . Feedback Blocked . | . . . Robot Schematics Acquired . | . . . Robots Built . | . . . Authchips . | . . . Time . | . . . Total Robot Build Rating . | . . . Part Schematics Acquired . | . . . Parts Built . | . . . Authchips . | . . . Time . | . . . Total Part Build Rating . | . . . Parts Repaired 1 | . 1 . Time 26 | . 26 . Parts Recycled . | . . . Recycled Matter . | . . . Retrieved Matter . | . . . Retrieved Components . | . . . Parts Scanalyzed . | . . . Part Schematics Acquired . | . . . Parts Damaged . | . . . Bothacking | -11 -10 -10 ------------ Run | Yrd Mat Min Used RIF Installer . | . . . Robots Hacked . | . . . Non-combat . | . . . Combat . | . . . Robot Hacks Applied . | . . . Relay Couplers Released . | . . . Fabnet Peak Effective % . | . . . Robots Rewired . | . . . Allies Hacked . | . . . Hacks Repelled . | . . . Allies | -11 -10 -10 -------- Run | Yrd Mat Min Total Allies . | . . . Largest Group . | . . . Highest-Rated Group . | . . . Highest-Rated Ally . | . . . Total Orders . | . . . Ally Attacks . | . . . Total Damage . | . . . Kills . | . . . Allies Corrupted . | . . . Allies Melted . | . . . Intel | -11 -10 -10 ------- Run | Yrd Mat Min Active Infowar (turns) 1420 | 190 1085 145 Seismic 1420 | 190 1085 145 Robot Analysis Total . | . . . Derelict Logs Recovered . | . . . Drone Launches . | . . . Drone Recoveries . | . . . Exploration | -11 -10 -10 ------------- Run | Yrd Mat Min Turns Passed 1505 | 271 1085 149 Spaces Moved 727 | 111 549 67 Core 2 | 2 . . Treads 725 | 109 549 67 Legs . | . . . Wheels . | . . . Hover . | . . . Flight . | . . . Fastest Speed 50 | 50 160 160 Average Speed 159 | 158 160 160 Slowest Speed 160 | 160 160 160 Overloaded Moves . | . . . Propulsion Burnouts . | . . . Robots Hopped . | . . . Potential Cave-ins . | . . . Cave-ins Triggered . | . . . Exploration Rate (%) 39 | 7 90 22 Regions Visited 2 Branch Regions 1 Pre-discovered Areas . | . . . Known Exits Taken . | . . . Unknown Exits Taken 2 | 1 1 . Scrap Searched . | . . . Spaces Dug 8 | . . 8 Terrain Destroyed 48 | . 2 46 Melee . | . . . Projectile 2 | . 2 . AOE 46 | . . 46 Terrain Rammed . | . . . Walls Destroyed . | . . . Machines Disabled . | . . . Actions | -11 -10 -10 --------- Run | Yrd Mat Min Total 933 | 158 689 86 Wait 87 | 12 75 . Move 725 | 110 548 67 Hop . | . . . Pick Up 16 | 3 13 . Fast Attach 8 | 7 1 . Attach 2 | . . 2 Detach . | . . . Swap 9 | 1 6 2 Drop 8 | . 8 . Fire 76 | 25 36 15 Melee . | . . . Ram . | . . . Kick . | . . . Crush 2 | . 2 . Escape Stasis . | . . . Rewire . | . . . Trap . | . . . Miscellaneous . | . . . Route ------- -11/Scrapyard -10/Materials (discovered 5 exits: [*Mat x3] / [*Min x2]) -10/Mines History --------- Turn | Location | Event 10 | -11/Scrapyard | Discovered new exit (range 16) 272 | -11/Scrapyard | Entered Materials 314 | -10/Materials | Build established: Mutant 393 | -10/Materials | Repaired Lgt. Treads 446 | -10/Materials | Discovered new exit (range 7) 626 | -10/Materials | Discovered new exit (range 16) 777 | -10/Materials | Discovered new exit (range 15) 925 | -10/Materials | Discovered new exit (range 13) 931 | -10/Materials | Destroyed 7 combat bots 1125 | -10/Materials | Discovered new exit (range 15) 1357 | -10/Materials | Entered Mines 1442 | -10/Mines | Assembled infested the area 1468 | -10/Mines | Core integrity fell below 50% 1491 | -10/Mines | Core integrity fell below 20% 1506 | -10/Mines | Destroyed by D-53 Grenadier with Mini Grenade Launcher Last Messages --------------- 01485_ The unstable cave ceiling collapses. 01485_ as-58820 destroyed. 01488_ Hvy. Assault Rifle destroyed. 01488_ as-05015 destroyed. 01488_ Destroyed Asb. F-torch. 01490_ Destroyed Asb. Hover Unit. 01490_ as-14747 destroyed. 01490_ as-70016 destroyed. 01490_ as-28590 destroyed. 01493_ Ion Engine destroyed. 01493_ Grenade Launcher destroyed. 01496_ as-57102 destroyed. 01497_ The unstable cave ceiling collapses. 01499_ C-30 ARC bursts open, deploying its payload. 01499_ D-53 Grenadier unfolds itself. 01499_ D-53 Grenadier knocked back. 01503_ The unstable cave ceiling collapses. 01504_ D-53 Grenadier knocked back. 01505_ The unstable cave ceiling collapses. Map ----- +----------------------------------------------------+ | | | | | | | | | | | | | | | | | | | ????????????????????????????????? | | ????????????????????????????????? | | ????????????????????????????????? | | ????????????????????????????????? | | ??????????###???????????????????? | | ????????## ##??????????????????? | | ??????## #??????????????????? | | ????### ####???????????????? | | ????? ????????????????? | | ????? ?????????????????? | | ?????# < #?????????????????? | | ?????# #?????????????????? | | ????## #?????????????????? | | ???## #?????????????????? | | ???# ### #???????????? | | ???# d #??????????? | | ???# @ $d %% #?????????? | | ???# ## #????????? | | ???# #?????????????????? | | ???## # #?????????????????? | | ????# ##?#?????????????????? | | ????# ######? ?????????????????? | | ????#a##????? ?????????????????? | | ???## #????? ?????????????????? | | ??## #????? ?????????????????? | | ??# #????? ?????????????????? | | ??# #?????? #######??????????? | | ??# #?????? ## ##?????????? | | ??# ##?????# #?????????? | | ??# ####??# #?????????? | | ??## #### ##????????? | | ???## ## ###??????? | | ????## ##?????? | | ?????## #?????? | | ??????# ##### #?????? | | ??????# #### #?????? | | ??????# ####### | | ??????# | | ??????###### | | ??????????# ### ###? | | ??????????## ## #??????? | +----------------------------------------------------+ Best States ------------- Heat Dissipation 25 Energy Generation 10 Energy Capacity 250 Matter Stores 300 Matter Capacity 300 Sight Range 16 Terrain Scan Density 10 Evasion (%) 40 Recoil Reduction 2 Item Schematics ----------------- None Robot Schematics ------------------ None Fabricated ------------ Nothing Repaired ---------- Lgt. Treads | 92% | -10/Materials Alien Tech Used ----------------- None Achievements -------------- None Challenges ------------ None Game ------ Seed MiniWarlordCarapace Manual? 0 Play Time 00:09:34 Cumulative 117.5 hours Start 2025.09.30 @ 13:38:25 End 2025.09.30 @ 13:49:33 Sessions 1 Manual Loads 0 Difficulty Rogue Special Mode None Game No. 227 Rogue 225 Adventurer 0 Explorer 2 Win Type - Total 1 Types 1/0/0/0/0/0/0/0/0/0 Lore% 41 Gallery% 50 Achievement% 44 Wizard Run 0 Options --------- Layout 2 ASCII 0 Keyboard 1 Movement Arrows Keybinds 0 Fullscreen 1 Font 28/SmallcapsGlow Map View 50x49 Zoom Use 0% Tactical HUD 1 Map Filters NONE Filters NONE Steam 1 RUN: e03843c3-e2e9-454c-9eb8-cb7882ca6986